bitfinex/quotes_BTCUSD_20230404
["timestamp","ask_amount","ask_price","bid_price","bid_amount"]
[1680569346578,0.037385,27758.0,27757.0,0.44692346]
[1680569346795,0.018,27758.0,27757.0,0.44692346]
[1680569347506,0.018,27758.0,27757.0,0.36020443]
[1680569347763,0.018,27758.0,27757.0,0.76511743]
[1680569347984,0.01131142,27758.0,27757.0,1.10322143]
[1680569348427,0.02277001,27763.0,27762.0,0.00449387]
[1680569348646,0.02277001,27763.0,27762.0,0.40323443]
[1680569348867,0.02277001,27763.0,27762.0,0.41537443]
[1680569349296,0.02277001,27763.0,27762.0,0.37721443]
[1680569349756,0.02277001,27763.0,27762.0,0.80270943]
[1680569350181,0.02477001,27763.0,27762.0,0.81570943]
[1680569350395,0.02477001,27763.0,27762.0,0.80270943]
[1680569350396,0.02277001,27763.0,27762.0,0.80270943]
[1680569350829,0.02277001,27763.0,27762.0,1.15630126]
[1680569351282,0.02477001,27763.0,27762.0,1.16930126]
[1680569354334,0.02477001,27763.0,27762.0,0.77289126]
[1680569354559,0.02477001,27763.0,27762.0,0.73429626]
[1680569356179,0.02477001,27763.0,27762.0,0.37220443]
[1680569356414,0.02477001,27763.0,27762.0,0.80378143]
[1680569356641,0.02477001,27763.0,27762.0,0.84222043]
[1680569357073,0.02477001,27763.0,27762.0,0.79078143]
[1680569357290,0.02377001,27763.0,27762.0,0.80378143]
[1680569357511,0.02377001,27763.0,27762.0,0.81228143]
[1680569359040,0.02377001,27763.0,27762.0,1.19068143]
[1680569359304,0.02377001,27763.0,27762.0,1.22947943]
[1680569364203,0.02377001,27763.0,27762.0,1.19068143]
[1680569366848,0.02377001,27763.0,27762.0,1.20018143]
[1680569368027,0.02377001,27763.0,27762.0,1.23736243]
[1680569368241,0.02377001,27763.0,27762.0,1.20018143]
[1680569369277,0.02377001,27763.0,27762.0,0.85127143]
[1680569369486,0.02377001,27763.0,27762.0,0.81328143]
[1680569369895,0.02365383,27763.0,27762.0,0.81328143]
[1680569372723,0.02365383,27763.0,27762.0,1.38028143]
[1680569372961,0.02365383,27763.0,27762.0,1.41855443]
[1680569376913,0.02365383,27763.0,27762.0,1.38028143]
[1680569378404,0.02365383,27763.0,27762.0,1.43407515]
[1680569378929,0.02365383,27763.0,27762.0,0.82239815]
[1680569379149,0.35687308,27763.0,27762.0,0.39038443]
[1680569379369,0.33486608,27763.0,27762.0,0.39038443]
[1680569379598,0.02365383,27763.0,27762.0,0.39038443]
[1680569379820,0.02365383,27763.0,27762.0,0.40821443]
[1680569381108,0.02365383,27763.0,27762.0,0.39020443]
[1680569382276,0.02365383,27763.0,27762.0,0.76860443]
[1680569382510,0.02365383,27763.0,27762.0,1.31764915]
[1680569382730,0.02365383,27763.0,27762.0,1.35516215]
[1680569384271,0.02365383,27763.0,27762.0,1.17506215]
[1680569385189,0.02365383,27763.0,27762.0,1.13754915]
[1680569386116,0.02365383,27763.0,27762.0,1.11953915]
[1680569386349,0.02365383,27763.0,27762.0,0.39020443]
[1680569387218,0.33742973,27763.0,27762.0,0.39020443]
[1680569387430,0.33760905,27763.0,27762.0,0.39020443]
[1680569388513,0.02383315,27763.0,27762.0,0.39020443]
[1680569388717,0.02365383,27763.0,27762.0,0.39020443]
[1680569390425,0.02365383,27763.0,27762.0,0.40821443]
[1680569390656,0.02365383,27763.0,27762.0,0.39020443]
[1680569392146,0.02354558,27763.0,27762.0,0.39020443]
[1680569392802,0.02354558,27763.0,27762.0,0.60584828]
[1680569393023,0.02354558,27763.0,27762.0,0.62385828]
[1680569393289,0.02354558,27763.0,27762.0,0.9102756]
[1680569393523,0.02354558,27763.0,27762.0,0.91591671]
[1680569393750,0.02354558,27763.0,27762.0,1.36394007]
[1680569394452,0.02354558,27763.0,27762.0,1.40704083]
[1680569395393,0.02311203,27763.0,27762.0,1.40704083]
[1680569395579,0.02311203,27763.0,27762.0,1.5365432]
[1680569396337,0.02311203,27763.0,27762.0,1.53654321]
[1680569396554,0.02311203,27763.0,27762.0,1.36414017]
[1680569396979,0.02311203,27763.0,27762.0,1.53654321]
[1680569397410,0.02311203,27763.0,27762.0,1.53672321]
[1680569397643,0.02311203,27763.0,27762.0,1.53654321]
[1680569401811,0.02311203,27763.0,27762.0,1.49817521]
[1680569402025,0.02311203,27763.0,27762.0,1.53464221]
[1680569402912,0.02311203,27763.0,27762.0,1.40513983]
[1680569403790,0.02311203,27763.0,27762.0,1.32577]
[1680569404690,0.02311203,27763.0,27762.0,1.49817304]
[1680569404926,0.02311203,27763.0,27762.0,1.53641704]
[1680569405616,0.02311203,27763.0,27762.0,1.40691683]
[1680569405846,0.02311203,27763.0,27762.0,1.36867283]
[1680569406063,0.02311203,27763.0,27762.0,0.99600747]
[1680569406291,0.02311203,27763.0,27762.0,1.37421086]
[1680569407190,0.02311203,27763.0,27762.0,1.36471086]
[1680569408779,0.02311203,27763.0,27762.0,1.57896592]
[1680569409004,0.02311203,27763.0,27762.0,1.54197592]
[1680569409227,0.02311203,27763.0,27762.0,1.32772086]
[1680569409513,0.02311203,27763.0,27762.0,1.36717686]
[1680569409928,0.02311203,27763.0,27762.0,1.45719636]
[1680569410147,0.02311203,27763.0,27762.0,1.32772086]
[1680569410582,0.02311203,27763.0,27762.0,1.32790086]
[1680569410828,0.02311203,27763.0,27762.0,1.32784086]
[1680569411049,0.02311203,27763.0,27762.0,1.32772086]
[1680569411609,0.02311203,27763.0,27762.0,0.68258293]
[1680569411834,0.02311203,27763.0,27762.0,0.68276293]
[1680569412656,0.02311203,27763.0,27762.0,0.50185989]
[1680569413749,0.02311203,27763.0,27762.0,0.85908311]
[1680569413966,0.02211203,27763.0,27762.0,0.89842611]
[1680569414193,0.02211203,27763.0,27762.0,0.86758311]
[1680569414419,0.02211203,27763.0,27762.0,1.07787615]
[1680569414669,0.02211203,27763.0,27762.0,1.02197615]
[1680569414928,0.02311203,27763.0,27762.0,1.07233415]
[1680569415210,0.02211203,27763.0,27762.0,1.02197615]
[1680569415468,0.02311203,27763.0,27762.0,0.88058311]
[1680569415719,0.02311203,27763.0,27762.0,0.86257311]
[1680569416192,0.02311203,27763.0,27762.0,0.88058311]
[1680569417797,0.02300986,27763.0,27762.0,0.88058311]
[1680569419030,0.02300986,27763.0,27762.0,1.25898311]
[1680569420157,0.02300986,27763.0,27762.0,1.25891684]
[1680569421632,0.01289261,27763.0,27762.0,1.25891684]
[1680569425841,0.01289261,27763.0,27762.0,0.86250684]
[1680569426065,0.01289261,27763.0,27762.0,0.60246008]
[1680569426506,0.01289261,27763.0,27762.0,0.51609362]
[1680569426733,0.01289261,27763.0,27762.0,0.60246029]
[1680569430529,0.4030168,27763.0,27762.0,0.23924973]
[1680569430754,0.4346238,27763.0,27762.0,0.0188]
[1680569431210,0.42399812,27763.0,27762.0,0.0188]
[1680569431430,0.51049812,27763.0,27762.0,0.0188]
[1680569431886,0.50949812,27763.0,27762.0,0.0058]
[1680569432162,0.51049812,27763.0,27762.0,0.0178]
[1680569432386,0.50129812,27763.0,27762.0,0.0178]
[1680569432607,0.50529812,27763.0,27762.0,0.0178]
[1680569433278,0.56290843,27763.0,27762.0,0.0058]
[1680569433509,0.56290843,27763.0,27762.0,0.0068]
[1680569433510,0.51829812,27763.0,27762.0,0.0068]
[1680569435715,0.50029812,27763.0,27762.0,0.0058]
[1680569435939,0.51829812,27763.0,27762.0,0.0068]
[1680569437104,0.51829812,27763.0,27762.0,0.001]
[1680569437105,0.71695597,27763.0,27762.0,0.001]
[1680569437342,0.70615097,27763.0,27762.0,0.001]
[1680569438516,0.71695597,27763.0,27762.0,0.001]
[1680569440787,0.71640313,27763.0,27762.0,0.001]
[1680569441012,0.71634313,27763.0,27762.0,0.001]
[1680569442311,0.72564313,27763.0,27762.0,0.001]
[1680569443671,0.71483813,27763.0,27762.0,0.001]
[1680569443892,0.72564313,27763.0,27762.0,0.001]
[1680569444108,0.71483813,27763.0,27762.0,0.001]
[1680569444340,0.72564313,27763.0,27762.0,0.001]
[1680569445768,0.13686109,27763.0,27762.0,0.001]
[1680569445985,0.05026109,27763.0,27762.0,0.39712712]
[1680569446195,0.02945909,27763.0,27762.0,0.38499712]
[1680569446604,0.02945909,27763.0,27762.0,0.00688]
[1680569446814,0.05068209,27763.0,27762.0,0.0067]
[1680569447054,0.02945909,27763.0,27762.0,0.0067]
[1680569447674,0.05062609,27763.0,27762.0,0.0067]
[1680569448088,0.02945909,27763.0,27762.0,0.0067]
[1680569448513,0.05017809,27763.0,27762.0,0.0067]
[1680569448717,0.02945909,27763.0,27762.0,0.0067]
[1680569449967,0.02945909,27763.0,27762.0,0.36141056]
[1680569450172,0.02945909,27763.0,27762.0,0.37009056]
[1680569450376,0.02945909,27763.0,27762.0,0.73504609]
[1680569452480,0.02945909,27763.0,27762.0,0.00688]
[1680569452701,0.38419859,27763.0,27762.0,0.0067]
[1680569453615,0.38419859,27763.0,27762.0,0.00688]
[1680569454685,0.47039859,27763.0,27762.0,0.0067]
[1680569455548,0.45239859,27763.0,27762.0,0.0057]
[1680569456200,0.46339859,27763.0,27762.0,0.0067]
[1680569457301,0.67351032,27763.0,27757.0,0.21572237]
[1680569457544,0.0866,27758.0,27756.0,6e-05]
[1680569457769,0.28227281,27757.0,27756.0,6e-05]
[1680569457999,0.28233281,27757.0,27756.0,6e-05]
[1680569458217,0.11893932,27757.0,27752.0,0.08624691]
[1680569458441,0.0866,27755.0,27752.0,0.08624691]
[1680569458688,0.030971,27754.0,27751.0,0.22014997]
[1680569458938,0.32188755,27753.0,27751.0,0.09067451]
[1680569459155,0.01996,27752.0,27751.0,0.09067451]
[1680569459375,0.57876379,27755.0,27751.0,0.09067451]
[1680569459376,0.02234432,27754.0,27751.0,0.09067451]
[1680569459597,0.02334432,27754.0,27751.0,0.09067451]
[1680569459834,0.41574367,27754.0,27751.0,0.0044276]
[1680569460058,0.30769576,27753.0,27751.0,0.0044276]
[1680569460273,0.021709,27752.0,27751.0,0.0044276]
[1680569460487,0.001,27752.0,27751.0,0.0044276]
[1680569461173,0.28713808,27753.0,27751.0,0.0044276]
[1680569461402,0.020518,27752.0,27751.0,0.0074276]
[1680569461616,0.37200121,27753.0,27751.0,0.0044276]
[1680569461832,0.022074,27752.0,27751.0,0.0074276]
[1680569462055,0.021074,27752.0,27751.0,0.0044276]
[1680569462269,0.021074,27752.0,27751.0,0.0074276]
[1680569462507,0.021074,27752.0,27751.0,0.0044276]
[1680569462726,0.022074,27752.0,27751.0,0.0074276]
[1680569462952,0.021074,27752.0,27751.0,0.0044276]
[1680569463868,0.021074,27752.0,27751.0,0.46286627]
[1680569464123,0.1866,27755.0,27751.0,0.46286627]
[1680569464124,0.00017932,27754.0,27751.0,0.45986627]
[1680569464345,0.00017932,27754.0,27751.0,0.09367451]
[1680569464346,0.001,27752.0,27751.0,0.09367451]
[1680569464570,0.00017932,27754.0,27752.0,0.0017]
[1680569464801,0.0865,27757.0,27753.0,0.018016]
[1680569464802,0.08667932,27757.0,27753.0,0.018016]
[1680569465025,0.00017932,27758.0,27755.0,0.0044276]
[1680569465261,0.00017932,27759.0,27755.0,0.0044276]
[1680569465476,0.00017932,27759.0,27755.0,0.0066276]
[1680569465902,0.001,27757.0,27755.0,0.0066276]
[1680569466496,0.28754294,27759.0,27755.0,0.0066276]
[1680569466698,0.021518,27758.0,27755.0,0.0106276]
[1680569466925,0.021518,27758.0,27756.0,0.22555272]
[1680569467101,0.002,27757.0,27756.0,0.22555272]
[1680569467503,0.00017932,27758.0,27756.0,0.22555272]
[1680569467811,0.02416832,27758.0,27756.0,0.22555272]
[1680569467976,0.00017932,27758.0,27756.0,0.22555272]
[1680569468172,0.001,27757.0,27756.0,0.22955272]
[1680569468569,0.02048788,27763.0,27756.0,0.93925056]
[1680569468776,0.01145909,27763.0,27762.0,0.0903276]
[1680569469008,0.01145909,27763.0,27762.0,1.12198616]
[1680569469230,0.01145909,27763.0,27762.0,1.13288616]
[1680569469449,0.01145909,27763.0,27762.0,1.10686616]
[1680569470103,0.01345909,27763.0,27762.0,1.11986616]
[1680569470341,0.01145909,27763.0,27762.0,1.19303944]
[1680569470568,0.01345909,27763.0,27762.0,1.20603944]
[1680569470781,0.01345909,27763.0,27762.0,1.19303944]
[1680569471002,0.01145909,27763.0,27762.0,1.10686616]
[1680569471227,0.01145909,27763.0,27762.0,1.32900659]
[1680569471450,0.01345909,27763.0,27762.0,1.34200659]
[1680569471720,0.01345909,27763.0,27762.0,1.41517987]
[1680569471721,0.01145909,27763.0,27762.0,1.41517987]
[1680569472397,0.01145909,27763.0,27762.0,1.59303944]
[1680569472621,0.01145909,27763.0,27762.0,1.49303944]
[1680569473320,0.01145909,27763.0,27762.0,1.86846988]
[1680569473786,0.01145909,27763.0,27762.0,1.2153066]
[1680569473999,0.01145909,27763.0,27762.0,1.31447988]
[1680569474000,0.01345909,27763.0,27762.0,1.31447988]
[1680569474255,0.01345909,27763.0,27762.0,1.2153066]
[1680569474469,0.01545909,27763.0,27762.0,1.2283066]
[1680569474704,0.01145909,27763.0,27762.0,1.2153066]
[1680569474932,0.01345909,27763.0,27762.0,1.2283066]
[1680569475148,0.01145909,27763.0,27762.0,1.2238066]
[1680569476504,0.01345909,27763.0,27762.0,1.2368066]
[1680569476726,0.01145909,27763.0,27762.0,1.2238066]
[1680569476934,0.01345909,27763.0,27762.0,1.2368066]
[1680569477156,0.01145909,27763.0,27762.0,1.2238066]
[1680569477385,0.01345909,27763.0,27762.0,1.57764507]
[1680569477605,0.01145909,27763.0,27762.0,1.22677616]
[1680569477826,0.01345909,27763.0,27762.0,1.23977616]
[1680569478102,0.01145909,27763.0,27762.0,1.22677616]
[1680569478322,0.01345909,27763.0,27762.0,1.23977616]
[1680569478767,0.01345909,27763.0,27762.0,1.68654952]
[1680569479449,0.01345909,27763.0,27762.0,1.30814952]
[1680569480840,0.01345909,27763.0,27762.0,1.41985616]
[1680569481069,0.01345909,27763.0,27762.0,1.78637898]
[1680569482820,0.01345909,27763.0,27762.0,1.22789898]
[1680569485653,0.01345909,27763.0,27762.0,1.60629898]
[1680569486982,0.01345909,27763.0,27762.0,1.60647898]
[1680569487451,0.01345909,27763.0,27762.0,1.78656898]
[1680569487722,0.01345909,27763.0,27762.0,1.18337898]
[1680569487983,0.01345909,27763.0,27762.0,1.14497098]
[1680569488555,0.01345909,27763.0,27762.0,1.18573398]
[1680569488809,0.01345909,27763.0,27762.0,1.19423398]
[1680569489075,0.01345909,27763.0,27762.0,1.15347098]
[1680569489633,0.01345909,27763.0,27762.0,0.83546098]
[1680569489917,0.29418192,27763.0,27762.0,0.0154]
[1680569490649,0.29218192,27763.0,27762.0,0.0024]
[1680569490915,0.29418192,27763.0,27762.0,0.0134]
[1680569491099,0.29236192,27763.0,27762.0,0.0024]
[1680569491317,0.01363909,27763.0,27762.0,0.0134]
[1680569491534,0.01363909,27763.0,27762.0,0.80919096]
[1680569491535,0.01345909,27763.0,27762.0,0.80919096]
[1680569491771,0.01345909,27763.0,27762.0,0.85731496]
[1680569491987,0.01345909,27763.0,27762.0,1.03740496]
[1680569492453,0.01145909,27763.0,27762.0,1.02640496]
[1680569492911,0.01145909,27763.0,27762.0,1.32640496]
[1680569493129,0.01136627,27763.0,27762.0,1.32640496]
[1680569493345,0.01336627,27763.0,27762.0,1.33840496]
[1680569494032,0.01336627,27763.0,27762.0,1.32039496]
[1680569494258,0.01336627,27763.0,27762.0,1.37442496]
[1680569496068,0.01336627,27763.0,27762.0,1.75282496]
[1680569496797,0.01336627,27763.0,27762.0,1.75281496]
[1680569497717,0.01336627,27763.0,27762.0,1.15849496]
[1680569498123,0.01336627,27763.0,27762.0,1.53671496]
[1680569498344,0.01336627,27763.0,27762.0,1.15831496]
[1680569499708,0.01336627,27763.0,27762.0,1.11869096]
[1680569499929,0.01336627,27763.0,27762.0,1.15706396]
[1680569504900,0.01336627,27763.0,27762.0,0.80178356]
[1680569505135,0.32853866,27763.0,27762.0,0.37761056]
[1680569505372,0.32853866,27763.0,27762.0,0.36911056]
[1680569505611,0.32853866,27763.0,27762.0,0.01458]
[1680569505844,0.32853866,27763.0,27762.0,0.0144]
[1680569506062,0.35018266,27763.0,27762.0,0.0144]
[1680569506259,0.35000266,27763.0,27762.0,0.0144]
[1680569506561,0.03483027,27763.0,27762.0,0.0144]
[1680569506817,0.35061334,27763.0,27762.0,0.0144]
[1680569507090,0.42445558,27763.0,27762.0,0.0144]
[1680569507373,0.42463558,27763.0,27762.0,0.0144]
[1680569508462,0.42263558,27763.0,27762.0,0.0024]
[1680569508717,0.42263558,27763.0,27762.0,0.0044]
[1680569508977,0.41183058,27763.0,27762.0,0.0044]
[1680569510358,0.41183058,27763.0,27762.0,0.0024]
[1680569511134,0.41183058,27763.0,27762.0,0.0044]
[1680569511907,0.41183058,27763.0,27762.0,0.0024]
[1680569512120,0.41183058,27763.0,27762.0,0.0044]
[1680569512323,0.03301027,27763.0,27762.0,0.0024]
[1680569512531,0.40844057,27763.0,27762.0,0.0044]
[1680569512729,0.04381527,27763.0,27762.0,0.0044]
[1680569512974,0.04363527,27763.0,27762.0,0.0044]
[1680569513909,0.41356355,27763.0,27762.0,0.0044]
[1680569514119,0.41374355,27763.0,27762.0,0.0044]
[1680569516944,0.01125726,27763.0,27762.0,0.0044]
[1680569517956,0.01125726,27763.0,27762.0,0.0024]
[1680569518170,0.01125726,27763.0,27762.0,0.0044]
[1680569518969,0.01125726,27763.0,27762.0,0.68699814]
[1680569519423,0.01125726,27763.0,27762.0,0.72584214]
[1680569520680,0.01125726,27763.0,27762.0,0.68699814]
[1680569521490,0.01125726,27763.0,27762.0,0.66898814]
[1680569521711,0.01125726,27763.0,27762.0,0.66916814]
[1680569524129,0.40012057,27763.0,27762.0,0.00458]
[1680569524404,0.42165457,27763.0,27762.0,0.0044]
[1680569525512,0.03279126,27763.0,27762.0,0.0044]
[1680569525767,0.15170726,27763.0,27758.0,0.00504112]
[1680569525994,0.10856226,27763.0,27762.0,0.002]
[1680569526213,0.12893326,27763.0,27762.0,0.002]
[1680569526659,0.12893326,27763.0,27758.0,0.00486112]
[1680569526888,0.0866,27761.0,27758.0,0.01786112]
[1680569527111,0.020816,27760.0,27758.0,0.00486112]
[1680569528210,0.4167813,27761.0,27758.0,0.00486112]
[1680569528450,0.020966,27760.0,27758.0,0.01386112]
[1680569528669,0.4167813,27761.0,27758.0,0.00486112]
[1680569528894,0.001,27760.0,27758.0,0.01386112]
[1680569529879,0.001,27760.0,27758.0,0.01392112]
[1680569530108,0.001,27760.0,27758.0,0.01404112]
[1680569530786,0.34919554,27760.0,27758.0,0.01404112]
[1680569533269,0.27638705,27759.0,27758.0,0.01404112]
[1680569534248,0.27638705,27759.0,27758.0,0.00504112]
[1680569534441,0.27738705,27759.0,27758.0,0.01404112]
[1680569534901,0.19328705,27759.0,27758.0,0.01398112]
[1680569535123,0.19228705,27759.0,27758.0,0.00486112]
[1680569535345,0.19328705,27759.0,27758.0,0.01386112]
[1680569537744,0.21507705,27759.0,27758.0,0.01386112]
[1680569537947,0.21475605,27759.0,27758.0,0.01386112]
[1680569538291,0.19328705,27759.0,27758.0,0.01386112]
[1680569538765,0.21367505,27759.0,27758.0,0.01386112]
[1680569539313,0.19328705,27759.0,27758.0,0.01386112]
[1680569544703,0.21383605,27759.0,27758.0,0.01386112]
[1680569551840,0.19346705,27759.0,27758.0,0.01386112]
[1680569552291,0.21471405,27759.0,27758.0,0.01386112]
[1680569553917,0.19346705,27759.0,27758.0,0.01386112]
[1680569554143,0.19328705,27759.0,27758.0,0.01386112]
[1680569554361,0.21425105,27759.0,27758.0,0.01386112]
[1680569554578,0.21443105,27759.0,27758.0,0.01386112]
[1680569556042,0.21418497,27759.0,27758.0,0.01386112]
[1680569556535,0.21418497,27759.0,27758.0,0.0134276]
[1680569557381,0.29208497,27759.0,27758.0,0.0134276]
[1680569557598,0.29224997,27759.0,27758.0,0.0134276]
[1680569558295,0.29124997,27759.0,27758.0,0.0044276]
[1680569558519,0.29224997,27759.0,27758.0,0.0134276]
[1680569558738,0.29124997,27759.0,27758.0,0.0044276]
[1680569558958,0.31305697,27759.0,27758.0,0.0054276]
[1680569562104,0.30224997,27759.0,27758.0,0.0054276]
[1680569562331,0.28112097,27759.0,27758.0,0.0054276]
[1680569563011,0.28068745,27759.0,27758.0,0.0054276]
[1680569563268,0.30086745,27759.0,27758.0,0.0054276]
[1680569563529,0.28068745,27759.0,27758.0,0.0054276]
[1680569564999,0.30221145,27759.0,27758.0,0.0054276]
[1680569565436,0.28086745,27759.0,27758.0,0.0054276]
[1680569565655,0.28074745,27759.0,27758.0,0.0054276]
[1680569565877,0.28068745,27759.0,27758.0,0.0054276]
[1680569566096,0.26968745,27759.0,27758.0,0.0044276]
[1680569566331,0.28768745,27759.0,27758.0,0.0054276]
[1680569567464,0.28768745,27759.0,27758.0,0.71375998]
[1680569567465,0.018,27759.0,27758.0,0.71375998]
[1680569567692,0.018,27759.0,27758.0,0.76043598]
[1680569567922,0.018,27759.0,27758.0,0.77844798]
[1680569568152,0.018,27759.0,27758.0,0.94258126]
[1680569568383,0.018,27759.0,27758.0,0.98568451]
[1680569569103,0.2298348,27762.0,27758.0,0.98468451]
[1680569569317,0.2298348,27762.0,27759.0,0.72301176]
[1680569569548,0.2298348,27762.0,27759.0,0.72319176]
[1680569570425,0.2298348,27762.0,27759.0,0.73619176]
[1680569570426,0.2318348,27762.0,27759.0,0.73619176]
[1680569572652,0.22825936,27761.0,27759.0,0.73619176]
[1680569574723,0.23025936,27761.0,27759.0,0.73619176]
[1680569581215,0.22386154,27760.0,27759.0,0.36789056]
[1680569581389,0.22386154,27760.0,27759.0,0.37639056]
[1680569582149,0.22386154,27760.0,27759.0,0.36339056]
[1680569582378,0.22586154,27760.0,27759.0,0.37639056]
[1680569582609,0.22586154,27760.0,27759.0,0.01318]
[1680569582849,0.24723254,27760.0,27759.0,0.013]
[1680569583078,0.24723254,27760.0,27759.0,0.01318]
[1680569583511,0.24723254,27760.0,27759.0,0.013]
[1680569584060,0.24713044,27760.0,27759.0,0.013]
[1680569589399,0.32503044,27760.0,27759.0,0.013]
[1680569589621,0.33583644,27760.0,27759.0,0.013]
[1680569590271,0.32303044,27760.0,27758.0,0.0044276]
[1680569590498,0.021676,27759.0,27758.0,0.0044276]
[1680569591822,0.032676,27759.0,27758.0,0.0054276]
[1680569592639,0.26198006,27759.0,27758.0,0.0054276]
[1680569595039,0.26198006,27759.0,27758.0,0.001]
[1680569595294,0.27278706,27759.0,27758.0,0.001]
[1680569596779,0.26178706,27759.0,27756.0,0.0044276]
[1680569596997,0.020972,27758.0,27756.0,0.0044276]
[1680569597215,0.031779,27758.0,27756.0,0.0044276]
[1680569597424,0.01975,27757.0,27756.0,0.0044276]
[1680569599171,0.01975,27757.0,27756.0,0.0064276]
[1680569599600,0.01975,27757.0,27756.0,0.0044276]
[1680569599822,0.02475,27757.0,27756.0,0.0044276]
[1680569600029,0.01975,27757.0,27756.0,0.0044276]
[1680569600288,0.02475,27757.0,27756.0,0.0044276]
[1680569600505,0.01975,27757.0,27756.0,0.0044276]
[1680569601755,0.02475,27757.0,27756.0,0.0044276]
[1680569601985,0.01975,27757.0,27756.0,0.0044276]
[1680569602225,0.02475,27757.0,27756.0,0.0044276]
[1680569602444,0.01975,27757.0,27756.0,0.0044276]
[1680569602673,0.03075,27757.0,27756.0,0.0054276]
[1680569603126,0.3211872,27757.0,27755.0,0.00018]
[1680569603327,0.2762052,27757.0,27756.0,0.001]
[1680569603509,0.149844,27757.0,27756.0,0.001]
[1680569603667,0.128228,27757.0,27756.0,0.001]
[1680569604050,0.3238004,27757.0,27756.0,0.001]
[1680569604700,0.3239804,27757.0,27756.0,0.001]
[1680569605340,0.3059804,27757.0,27752.0,0.39738444]
[1680569605553,0.0779,27755.0,27751.0,0.43786791]
[1680569605766,0.120321,27754.0,27752.0,0.31928696]
[1680569605979,0.02043,27753.0,27752.0,0.31946696]
[1680569606414,0.32382372,27753.0,27752.0,0.00018]
[1680569606874,0.40142372,27753.0,27752.0,0.00012]
[1680569606877,0.40142372,27753.0,27751.0,0.00018]
[1680569607103,0.198994,27752.0,27751.0,0.00096]
[1680569607346,0.198994,27752.0,27750.0,0.0021]
[1680569607347,0.70631289,27752.0,27750.0,0.0021]
[1680569607589,0.70631289,27752.0,27750.0,0.00018]
[1680569607590,0.098426,27751.0,27750.0,0.00018]
[1680569607821,0.46394656,27751.0,27748.0,0.0044276]
[1680569608067,0.198956,27750.0,27748.0,0.30910574]
[1680569608301,0.021783,27749.0,27748.0,0.30916574]
[1680569608535,0.021783,27749.0,27748.0,0.0046076]
[1680569608772,0.25576821,27749.0,27748.0,0.0044876]
[1680569608991,0.25576821,27749.0,27748.0,0.0044276]
[1680569609228,0.25576821,27749.0,27747.0,0.0032076]
[1680569609451,0.020877,27748.0,27747.0,0.00378]
[1680569609672,0.031688,27748.0,27747.0,0.0045]
[1680569609897,0.031688,27748.0,27746.0,0.0042]
[1680569610117,0.020235,27747.0,27746.0,0.0039]
[1680569610338,0.020235,27747.0,27746.0,0.00354]
[1680569610591,0.020235,27747.0,27746.0,0.00372]
[1680569611249,0.030235,27747.0,27746.0,0.00372]
[1680569611690,0.030235,27747.0,27746.0,0.0039]
[1680569611962,0.030235,27747.0,27746.0,0.00378]
[1680569612186,0.020235,27747.0,27746.0,0.0039]
[1680569612405,0.02980142,27747.0,27746.0,0.00396]
[1680569612624,0.02980142,27747.0,27746.0,0.00414]
[1680569612852,0.02980142,27747.0,27746.0,0.00444]
[1680569613077,0.04061242,27747.0,27746.0,0.0048]
[1680569613330,0.04061242,27747.0,27746.0,0.00456]
[1680569613556,0.02980142,27747.0,27746.0,0.00474]
[1680569613780,0.01980142,27747.0,27746.0,0.0045]
[1680569614012,0.03580142,27747.0,27746.0,0.0045]
[1680569614723,0.03580142,27747.0,27746.0,0.00444]
[1680569615368,0.03580142,27747.0,27746.0,0.00426]
[1680569615583,0.04661242,27747.0,27746.0,0.0042]
[1680569616266,0.04661242,27747.0,27746.0,0.00432]
[1680569616705,0.03061242,27747.0,27746.0,0.00432]
[1680569616928,0.05361242,27747.0,27746.0,0.00432]
[1680569617399,0.05361242,27747.0,27746.0,0.0042]
[1680569617836,0.05361242,27747.0,27746.0,0.00426]
[1680569618058,0.05361242,27747.0,27746.0,0.00384]
[1680569618285,0.04280142,27747.0,27746.0,0.00408]
[1680569618551,0.05361242,27747.0,27746.0,0.00408]
[1680569618773,0.04280142,27747.0,27746.0,0.00408]
[1680569619225,0.04280142,27747.0,27746.0,0.29785849]
[1680569619457,0.023,27747.0,27746.0,0.02902]
[1680569619686,0.023,27747.0,27746.0,0.50241256]
[1680569619946,0.023,27747.0,27746.0,0.50235256]
[1680569620177,0.00018,27752.0,27746.0,0.50187256]
[1680569620412,0.00018,27752.0,27747.0,0.45873056]
[1680569620641,0.00018,27752.0,27747.0,0.47794956]
[1680569620860,0.00018,27752.0,27747.0,0.47674956]
[1680569621356,0.00118,27752.0,27749.0,0.0033]
[1680569621578,0.00118,27752.0,27749.0,0.0813]
[1680569622259,0.00118,27752.0,27750.0,0.32470661]
[1680569622501,0.00018,27752.0,27750.0,0.32470661]
[1680569622714,0.00318,27752.0,27750.0,0.32470661]
[1680569623401,0.00018,27752.0,27750.0,0.32470661]
[1680569623636,0.00018,27752.0,27750.0,0.32670661]
[1680569623888,0.020796,27752.0,27751.0,0.0035]
[1680569624118,0.31467532,27752.0,27751.0,0.00356]
[1680569624348,0.31467532,27752.0,27751.0,0.00374]
[1680569624582,0.31467532,27752.0,27751.0,0.00368]
[1680569624807,0.31467532,27752.0,27751.0,0.00374]
[1680569625031,0.31467532,27752.0,27751.0,0.0038]
[1680569625265,0.31467532,27752.0,27751.0,0.00386]
[1680569625504,0.32548532,27752.0,27751.0,0.0044]
[1680569625731,0.32848532,27752.0,27751.0,0.0035]
[1680569625960,0.32548532,27752.0,27751.0,0.0035]
[1680569626230,0.38127565,27752.0,27751.0,0.0035]
[1680569626453,0.37827565,27752.0,27751.0,0.0035]
[1680569626676,0.40127565,27752.0,27751.0,0.0035]
[1680569627825,0.40127565,27752.0,27749.0,0.0024]
[1680569627826,0.46104089,27752.0,27749.0,0.0024]
[1680569628055,0.1,27750.0,27747.0,0.003]
[1680569628284,0.021054,27749.0,27747.0,0.00288]
[1680569628501,0.021054,27749.0,27748.0,0.0048]
[1680569628934,0.021054,27749.0,27748.0,0.00756]
[1680569629380,0.08054046,27749.0,27748.0,0.0048]
[1680569629596,0.10216246,27749.0,27748.0,0.0048]
[1680569629816,0.34305076,27749.0,27748.0,0.0048]
[1680569630056,0.36185276,27749.0,27748.0,0.0048]
[1680569630274,0.36485276,27749.0,27748.0,0.0048]
[1680569630495,0.1,27748.0,27746.0,0.0048]
[1680569630714,0.020734,27747.0,27746.0,0.0048]
[1680569630937,0.017534,27747.0,27746.0,0.0048]
[1680569631154,0.017534,27747.0,27746.0,0.00474]
[1680569631380,0.017534,27747.0,27746.0,0.00468]
[1680569632048,0.040534,27747.0,27746.0,0.00498]
[1680569632258,0.040534,27747.0,27746.0,0.00474]
[1680569632477,0.040534,27747.0,27746.0,0.0045]